fUST/lending_fUST_20240111
["ID","MTS","AMOUNT","RATE_DAILY","PERIOD"]
[311131038,1704927052484,-500.0,0.00031506,2]
[311131039,1704927052494,-500.0,0.00031506,2]
[311131040,1704927052506,-500.0,0.00031506,2]
[311131041,1704927052515,-2861.77,0.00031506,2]
[311131042,1704927052526,-500.0,0.00031506,2]
[311131043,1704927052536,-2454.77,0.00031506,2]
[311131044,1704927052546,-6819.4,0.00031506,2]
[311131045,1704927052555,-500.0,0.00031506,2]
[311131046,1704927052566,-531.32107642,0.00031506,2]
[311131047,1704927052575,-1572.8,0.00031506,2]
[311131048,1704927052585,-500.0,0.00031506,2]
[311131049,1704927052596,-922.45,0.00031506,2]
[311131050,1704927052605,-667.07,0.00031506,2]
[311131051,1704927052615,-758.56,0.00031506,2]
[311131052,1704927052625,-500.0,0.00031506,2]
[311131053,1704927052634,-1113.14,0.00031506,2]
[311131054,1704927052644,-545.41,0.00031506,2]
[311131055,1704927052653,-1524.9,0.00031506,2]
[311131056,1704927052662,-662.53,0.00031506,2]
[311131057,1704927052672,-500.0,0.00031506,2]
[311131058,1704927052681,-500.0,0.00031506,2]
[311131059,1704927052690,-500.0,0.00031506,2]
[311131060,1704927052699,-621.91,0.00031506,2]
[311131061,1704927052709,-529.42,0.00031506,2]
[311131062,1704927052718,-1075.2,0.00031506,2]
[311131063,1704927052729,-500.0,0.00031506,2]
[311131064,1704927052741,-500.0,0.00031506,2]
[311131065,1704927052752,-966.316277,0.00031506,2]
[311131066,1704927052762,-966.316277,0.00031506,2]
[311131067,1704927052773,-6305.247186,0.00031506,2]
[311131068,1704927052783,-6305.247186,0.00031506,2]
[311131069,1704927052793,-169.4,0.00031506,2]
[311131070,1704927052803,-169.4,0.00031506,2]
[311131071,1704927052814,-173.38639317,0.00031512,7]
[311131072,1704927052824,-173.38639317,0.00031522,7]
[311131073,1704927052837,-155.44388086,0.00031547,7]
[311131074,1704927052848,-152.35064136,0.00031564,7]
[311131075,1704927052858,-166.94383685,0.00031567,4]
[311131076,1704927052868,-989.576625,0.00031577,2]
[311131077,1704927052878,-150.360848,0.00031577,2]
[311131078,1704927052887,-152.788532,0.00031577,2]
[311131079,1704927052897,-152.788533,0.00031577,2]
[311131080,1704927052907,-150.36085,0.00031577,2]
[311131081,1704927052916,-166.61236036,0.00031702,7]
[311131082,1704927052925,-342.14057924,0.0003178,2]
[311131083,1704927052937,-500.0,0.0003178,2]
[311131084,1704927052947,-500.0,0.0003178,2]
[311131085,1704927052957,-500.0,0.0003178,2]
[311131086,1704927052967,-500.0,0.0003178,2]
[311131087,1704927052976,-500.0,0.0003178,2]
[311131088,1704927052986,-500.0,0.0003178,2]
[311131089,1704927052996,-500.0,0.0003178,2]
[311131090,1704927053008,-500.19121575,0.0003178,2]
[311131091,1704927053019,-500.0,0.0003178,2]
[311131092,1704927053029,-500.0,0.0003178,2]
[311131093,1704927053039,-500.0,0.0003178,2]
[311131094,1704927053048,-544.98,0.0003178,2]
[311131095,1704927053057,-500.0,0.0003178,2]
[311131096,1704927053066,-844.54,0.0003178,2]
[311131097,1704927053076,-501.09,0.0003178,2]
[311131098,1704927053086,-1411.28,0.0003178,2]
[311131099,1704927053096,-500.0,0.0003178,2]
[311131100,1704927053106,-500.0,0.0003178,2]
[311131101,1704927053116,-500.0,0.0003178,2]
[311131102,1704927053127,-500.0,0.0003178,2]
[311131103,1704927053136,-500.0,0.0003178,2]
[311131104,1704927053146,-387.73802533,0.0003178,2]
[311131105,1704927053156,-500.0,0.0003178,2]
[311131106,1704927053166,-500.0,0.0003178,2]
[311131107,1704927053175,-500.0,0.0003178,2]
[311131108,1704927053184,-500.0,0.0003178,2]
[311131109,1704927053193,-500.0,0.0003178,2]
[311131110,1704927053203,-500.0,0.0003178,2]
[311131111,1704927053212,-500.0,0.0003178,2]
[311131112,1704927053221,-702.83,0.0003178,2]
[311131113,1704927053231,-500.0,0.0003178,2]
[311131114,1704927053241,-500.0,0.0003178,2]
[311131115,1704927053250,-500.0,0.0003178,2]
[311131116,1704927053260,-500.0,0.0003178,2]
[311131117,1704927053271,-500.0,0.0003178,2]
[311131118,1704927053281,-500.0,0.0003178,2]
[311131119,1704927053290,-500.0,0.0003178,2]
[311131120,1704927053300,-8763.72,0.0003178,2]
[311131121,1704927053309,-2163.93,0.0003178,2]
[311131122,1704927053319,-500.0,0.0003178,2]
[311131123,1704927053329,-500.0,0.0003178,2]
[311131124,1704927053338,-500.0,0.0003178,2]
[311131125,1704927053348,-500.0,0.0003178,2]
[311131126,1704927053358,-500.0,0.0003178,2]
[311131127,1704927053367,-2371.9,0.0003178,2]
[311131128,1704927053377,-500.0,0.0003178,2]
[311131129,1704927053387,-500.0,0.0003178,2]
[311131130,1704927053397,-500.0,0.0003178,2]
[311131131,1704927053407,-500.0,0.0003178,2]
[311131132,1704927053416,-500.0,0.0003178,2]
[311131133,1704927053426,-2861.77,0.0003178,2]
[311131134,1704927053435,-500.0,0.0003178,2]
[311131135,1704927053445,-2454.77,0.0003178,2]
[311131136,1704927053455,-6819.4,0.0003178,2]
[311131137,1704927053465,-340.87121588,0.0003178,2]
[311131138,1704927053475,-1572.8,0.0003178,2]
[311131139,1704927053485,-500.0,0.0003178,2]
[311131140,1704927053494,-922.45,0.0003178,2]
[311131141,1704927053506,-667.07,0.0003178,2]
[311131142,1704927053516,-758.56,0.0003178,2]
[311131143,1704927053526,-500.0,0.0003178,2]
[311131144,1704927053535,-1113.14,0.0003178,2]
[311131145,1704927053545,-545.41,0.0003178,2]
[311131146,1704927053555,-1524.9,0.0003178,2]
[311131147,1704927053565,-662.53,0.0003178,2]
[311131148,1704927053573,-500.0,0.0003178,2]
[311131149,1704927053582,-500.0,0.0003178,2]
[311131150,1704927053592,-591.19904289,0.0003178,2]
[311131151,1704927053603,-621.91,0.0003178,2]
[311131152,1704927053613,-529.42,0.0003178,2]
[311131153,1704927053623,-1075.2,0.0003178,2]
[311131154,1704927053634,-500.0,0.0003178,2]
[311131155,1704927053645,-500.0,0.0003178,2]
[311131156,1704927053655,-12429.70172272,0.000318,2]
[311131157,1704927053665,-1207.63770869,0.00031831,30]
[311131158,1704927053675,-5000.0,0.00031833,2]
[311131159,1704927053685,-155.0,0.00031852,2]
[311131160,1704927053696,-173.38639317,0.00031865,7]
[311131161,1704927053706,-173.38639317,0.00031956,7]
[311131162,1704927053717,-5000.0,0.00031958,7]
[311131163,1704927053728,-5000.0,0.00031962,7]
[311131164,1704927053738,-173.38639317,0.00031966,7]
[311131165,1704927053748,-153.0,0.00031973,2]
[311131166,1704927053759,-153.0,0.00031973,2]
[311131167,1704927053769,-153.0,0.00031973,2]
[311131168,1704927053779,-153.0,0.00031973,2]
[311131169,1704927053789,-150.0,0.00031999,2]
[311131170,1704927053798,-500.0,0.00031999,4]
[311131171,1704927053808,-500.0,0.00031999,4]
[311131172,1704927053817,-226.01091952,0.00031999,4]
[311131173,1704927053828,-268.22145302,0.00031999,4]
[311131174,1704927053837,-398.12730108,0.00031999,4]
[311131175,1704927053849,-500.0,0.00031999,4]
[311131176,1704927053859,-645.63740404,0.00031999,4]
[311131177,1704927053869,-423.91635654,0.00031999,4]
[311131178,1704927053879,-500.0,0.00031999,4]
[311131179,1704927053888,-2134.03260025,0.00032,4]
[311131180,1704927053897,-59504.55847533,0.00032,10]
[311131181,1704927053906,-17905.49764028,0.00032,15]
[311131182,1704927053916,-500.0,0.00032,2]
[311131183,1704927053925,-6000.0,0.00032,2]
[311131184,1704927053934,-1500.0,0.00032,2]
[311131185,1704927053943,-966.316277,0.00032,2]
[311131186,1704927053952,-966.316277,0.00032,2]
[311131187,1704927053962,-6305.247186,0.00032,2]
[311131188,1704927053971,-6305.247186,0.00032,2]
[311131189,1704927053980,-169.4,0.00032,2]
[311131190,1704927053989,-169.4,0.00032,2]
[311131191,1704927053998,-619.99999999,0.0003201,2]
[311131192,1704927054008,-500.0,0.00032054,2]
[311131193,1704927054018,-500.0,0.00032054,2]
[311131194,1704927054029,-500.0,0.00032054,2]
[311131195,1704927054038,-500.0,0.00032054,2]
[311131196,1704927054047,-500.0,0.00032054,2]
[311131197,1704927054056,-500.0,0.00032054,2]
[311131198,1704927054065,-544.4,0.00032054,2]
[311131199,1704927054075,-500.0,0.00032054,2]
[311131200,1704927054086,-544.98,0.00032054,2]
[311131201,1704927054095,-500.0,0.00032054,2]
[311131202,1704927054105,-844.54,0.00032054,2]
[311131203,1704927054115,-501.09,0.00032054,2]
[311131204,1704927054124,-1411.28,0.00032054,2]
[311131205,1704927054133,-500.0,0.00032054,2]
[311131206,1704927054142,-551.14435428,0.00032054,2]
[311131207,1704927054151,-500.0,0.00032054,2]
[311131208,1704927054161,-500.0,0.00032054,2]
[311131209,1704927054172,-500.0,0.00032054,2]
[311131210,1704927054181,-500.0,0.00032054,2]
[311131211,1704927054191,-500.0,0.00032054,2]
[311131212,1704927054200,-500.0,0.00032054,2]
[311131213,1704927054209,-500.0,0.00032054,2]
[311131214,1704927054219,-500.0,0.00032054,2]
[311131215,1704927054228,-500.0,0.00032054,2]
[311131216,1704927054238,-702.83,0.00032054,2]
[311131217,1704927054247,-500.0,0.00032054,2]
[311131218,1704927054259,-500.0,0.00032054,2]
[311131219,1704927054268,-500.0,0.00032054,2]
[311131220,1704927054277,-500.0,0.00032054,2]
[311131221,1704927054286,-645.03284407,0.00032054,2]
[311131222,1704927054295,-500.0,0.00032054,2]
[311131223,1704927054304,-500.0,0.00032054,2]
[311131224,1704927054313,-8763.72,0.00032054,2]
[311131225,1704927054323,-2163.93,0.00032054,2]
[311131226,1704927054332,-500.0,0.00032054,2]
[311131227,1704927054341,-342.5,0.00032054,2]
[311131228,1704927054351,-275.77,0.00032054,2]
[311131229,1704927054361,-500.0,0.00032054,2]
[311131230,1704927054371,-2371.9,0.00032054,2]
[311131231,1704927054381,-369.52,0.00032054,2]
[311131232,1704927054391,-500.0,0.00032054,2]
[311131233,1704927054401,-500.0,0.00032054,2]
[311131234,1704927054411,-500.0,0.00032054,2]
[311131235,1704927054421,-2861.77,0.00032054,2]
[311131236,1704927054430,-2454.77,0.00032054,2]
[311131237,1704927054439,-6819.4,0.00032054,2]
[311131238,1704927054449,-1572.8,0.00032054,2]
[311131239,1704927054458,-518.41658076,0.00032054,2]
[311131240,1704927054467,-922.45,0.00032054,2]
[311131241,1704927054476,-667.07,0.00032054,2]
[311131242,1704927054486,-758.56,0.00032054,2]
[311131243,1704927054495,-500.0,0.00032054,2]
[311131244,1704927054506,-1113.14,0.00032054,2]
[311131245,1704927054515,-545.41,0.00032054,2]
[311131246,1704927054525,-1524.9,0.00032054,2]
[311131247,1704927054535,-662.53,0.00032054,2]
[311131248,1704927054545,-500.0,0.00032054,2]
[311131249,1704927054554,-511.15113817,0.00032054,2]
[311131250,1704927054563,-621.91,0.00032054,2]
[311131251,1704927054572,-529.42,0.00032054,2]
[311131252,1704927054581,-1075.2,0.00032054,2]
[311131253,1704927054592,-500.0,0.00032054,2]
[311131254,1704927054601,-500.0,0.00032054,2]
[311131255,1704927054611,-173.38639317,0.0003206,7]
[311131256,1704927054620,-562.32,0.0003208,2]
[311131257,1704927054629,-620.00002255,0.00032089,2]
[311131258,1704927054638,-152.35064136,0.00032095,7]
[311131259,1704927054648,-173.38639317,0.0003213,7]
[311131260,1704927054657,-5000.0,0.00032145,7]
[311131261,1704927054666,-5000.0,0.00032147,7]
[311131262,1704927054675,-19999.50423277,0.00032186,2]
[311131263,1704927054684,-151.0,0.00032191,2]
[311131264,1704927054694,-18744.10003354,0.000322,2]
[311131265,1704927054704,-169.4,0.000322,2]
[311131266,1704927054714,-169.4,0.000322,2]
[311131267,1704927054724,-307.1403654,0.00032301,2]
[311131268,1704927054735,-966.316277,0.00032328,2]
[311131269,1704927054745,-966.316277,0.00032328,2]
[311131270,1704927054758,-6305.247186,0.00032328,2]
[311131271,1704927054768,-6305.247186,0.00032328,2]
[311131272,1704927054778,-500.0,0.00032328,2]
[311131273,1704927054787,-500.0,0.00032328,2]
[311131274,1704927054797,-500.0,0.00032328,2]
[311131275,1704927054807,-500.0,0.00032328,2]
[311131276,1704927054817,-500.0,0.00032328,2]
[311131277,1704927054827,-500.0,0.00032328,2]
[311131278,1704927054836,-544.98,0.00032328,2]
[311131279,1704927054846,-500.0,0.00032328,2]
[311131280,1704927054855,-844.54,0.00032328,2]
[311131281,1704927054865,-501.09,0.00032328,2]
[311131282,1704927054874,-1411.28,0.00032328,2]
[311131283,1704927054883,-500.0,0.00032328,2]
[311131284,1704927054974,-500.0,0.00032328,2]
[311131285,1704927054983,-336.68,0.00032328,2]
[311131286,1704927054992,-500.0,0.00032328,2]
[311131287,1704927055001,-500.0,0.00032328,2]
[311131288,1704927055012,-500.0,0.00032328,2]
[311131289,1704927055021,-500.0,0.00032328,2]
[311131290,1704927055030,-500.0,0.00032328,2]
[311131291,1704927055039,-702.83,0.00032328,2]
[311131292,1704927055049,-500.0,0.00032328,2]
[311131293,1704927055058,-500.0,0.00032328,2]
[311131294,1704927055068,-500.0,0.00032328,2]
[311131295,1704927055077,-500.0,0.00032328,2]
[311131296,1704927055086,-500.0,0.00032328,2]
[311131297,1704927055095,-407.63088715,0.00032328,2]
[311131298,1704927055104,-8763.72,0.00032328,2]
[311131299,1704927055113,-2163.93,0.00032328,2]
[311131300,1704927055123,-500.0,0.00032328,2]
[311131301,1704927055132,-500.0,0.00032328,2]
[311131302,1704927055141,-2371.9,0.00032328,2]
[311131303,1704927055151,-500.0,0.00032328,2]
[311131304,1704927055160,-183.73886406,0.00032328,2]
[311131305,1704927055169,-500.0,0.00032328,2]
[311131306,1704927055179,-2861.77,0.00032328,2]
[311131307,1704927055188,-2454.77,0.00032328,2]
[311131308,1704927055197,-6819.4,0.00032328,2]
[311131309,1704927055206,-1572.8,0.00032328,2]
[311131310,1704927055215,-922.45,0.00032328,2]
[311131311,1704927055225,-667.07,0.00032328,2]
[311131312,1704927055234,-758.56,0.00032328,2]
[311131313,1704927055243,-589.69,0.00032328,2]
[311131314,1704927055255,-1113.14,0.00032328,2]
[311131315,1704927055265,-545.41,0.00032328,2]
[311131316,1704927055274,-1524.9,0.00032328,2]
[311131317,1704927055283,-662.53,0.00032328,2]
[311131318,1704927055293,-500.0,0.00032328,2]
[311131319,1704927055302,-621.91,0.00032328,2]
[311131320,1704927055311,-529.42,0.00032328,2]
[311131321,1704927055321,-1075.2,0.00032328,2]
[311131322,1704927055330,-608.46214191,0.00032328,2]
[311131323,1704927055340,-500.0,0.00032328,2]
[311131324,1704927055349,-300.0,0.000324,16]
[311131325,1704927055359,-173.38639317,0.00032408,7]
[311131326,1704927055368,-2181.79149672,0.00032458,2]
[311131327,1704927055377,-1383.08954435,0.00032499,3]
[311131328,1704927055387,-186557.73584157,0.000325,20]
[311131329,1704927055570,-154.93802479,0.00011658,2]
[311131330,1704927055579,-521.10576847,0.00011659,2]
[311131331,1704927055589,-521.10576847,0.00011659,2]
[311131332,1704927055598,-14153.52479838,0.00027397,3]
[311131333,1704927055610,-10201.34520162,0.00027397,3]
[311131334,1704927055620,-8156.38040217,0.000325,20]
[311131335,1704927055631,-3465.22949923,0.000325,20]
[311131336,1704927055712,-3467.83369138,0.00011427,2]
[311131337,1704927055722,-232.60464348,0.00027395,2]
[311131338,1704927055732,-85.96459814,0.00027395,2]
[311131339,1704927055746,-12986.65220415,0.00027395,2]
[311131340,1704927055759,-263.54676131,0.00027395,2]
[311131341,1704927055772,-458.64272554,0.00027396,2]
[311131342,1704927055782,-191.01244923,0.00027396,2]
[311131343,1704927055792,-4474.19858534,0.00027396,2]
[311131464,1704927900905,9701.3437875,0.00010633,2]
[311131467,1704927972543,154.98450155,0.00010633,2]
[311131468,1704927990537,154.98450155,0.00010633,2]
[311131469,1704928012559,214.1201459,0.00010633,2]
[311131578,1704928234044,-333.43248414,0.00011582,2]
[311131580,1704928234056,-133.26594493,0.00011582,2]
[311131582,1704928234066,-155.0,0.00011582,2]
[311131585,1704928234075,-155.0,0.00011583,2]
[311131588,1704928234085,-964.55150019,0.00011583,2]
[311131591,1704928234095,-155.0,0.00011583,2]
[311131594,1704928234104,-230.48582873,0.00011583,2]
[311131597,1704928234114,-642.93704766,0.00011584,2]
[311131600,1704928234123,-155.0,0.00011585,2]
[311131603,1704928234132,-1250.66144998,0.00011585,2]
[311131606,1704928234141,-1239.896093,0.00011586,2]
[311131608,1704928234153,-155.0,0.00011586,2]
[311131611,1704928234162,-322.83363774,0.00011586,2]
[311131614,1704928234171,-198.82408315,0.00011586,2]
[311131617,1704928234180,-708.28255979,0.00011586,2]
[311131620,1704928234190,-4788.51765555,0.00011586,2]
[311131623,1704928234199,-178.51706094,0.00011587,2]
[311131626,1704928234208,-160.69305661,0.00011587,2]
[311131629,1704928234217,-242.59429943,0.00011587,2]
[311131632,1704928234226,-1067.08288417,0.00011587,2]
[311131634,1704928234235,-525.62118693,0.00011587,2]
[311131636,1704928234244,-23812.32037109,0.00011587,2]
[311131638,1704928234254,-901.68385165,0.00011588,2]
[311131640,1704928234264,-947.43868379,0.00011588,2]
[311131642,1704928234273,-7943.71182072,0.00011588,2]
[311131644,1704928234282,-20832.93466306,0.00011588,2]
[311131646,1704928234291,-7987.09073251,0.00011588,2]
[311131648,1704928234300,-2927.32783457,0.00011589,2]
[311131650,1704928234309,-400.02724112,0.00011589,2]
[311131652,1704928234318,-285.7548216,0.00011589,2]
[311131654,1704928234331,-874.6714817,0.0001159,2]
[311131657,1704928234341,-18477.29264077,0.0001159,2]
[311131659,1704928234353,-4733.95,0.0001159,2]
[311131661,1704928234366,-59303.59023055,0.0001159,2]
[311131663,1704928234376,-1737.24988191,0.00011591,2]
[311131665,1704928234385,-17364.76766165,0.00011591,2]
[311132109,1704928238904,-155.0,0.00011582,2]
[311132111,1704928238914,-1030.59482552,0.00011582,2]
[311132113,1704928238923,-155.0,0.00011582,2]
[311132115,1704928238932,-18.41398741,0.00011591,2]
[311132118,1704928238951,-2445.21825287,0.00011591,2]
[311132120,1704928238960,-197.71403203,0.00011608,2]
[311132122,1704928238969,-255.88692025,0.00011645,2]
[311132124,1704928238979,-162.75529733,0.00011645,2]
[311132126,1704928238988,-295.45838309,0.00011651,2]
[311132128,1704928238997,-155.39178535,0.00011651,2]
[311132130,1704928239007,-231.91837004,0.00011651,2]
[311132132,1704928239016,-309.70579264,0.00011651,2]
[311132134,1704928239025,-2475.7657507,0.00011672,2]
[311132136,1704928239034,-309.76768121,0.00012671,2]
[311132138,1704928239043,-200.0,0.00012772,2]
[311132140,1704928239052,-860.80550823,0.00013,2]
[311132142,1704928239061,-4541.487898,0.00013699,2]
[311132144,1704928239070,-368.786727,0.00013699,2]
[311132146,1704928239079,-154.93802479,0.00015,2]
[311132148,1704928239089,-154.93802479,0.00015,2]
[311132150,1704928239098,-686.53707421,0.00015,2]
[311132152,1704928239108,-2232.21223899,0.00015516,2]
[311132154,1704928239117,-260.1996768,0.00015996,2]
[311132156,1704928239127,-48664.99034483,0.00016,2]
[311132158,1704928239136,-172.58473352,0.000164,2]
[311132160,1704928239145,-271.96235488,0.000165,2]
[311132162,1704928239156,-872.56977946,0.00017235,2]
[311132164,1704928239165,-246.05359663,0.000178,2]
[311132166,1704928239175,-10500.0358078,0.00017898,2]
[311132168,1704928239184,-155.0736718,0.00018,2]
[311132170,1704928239193,-1578.65511595,0.00019,2]
[311132173,1704928239203,-158.086414,0.00019178,2]
[311132174,1704928239212,-1112.08388858,0.000195,2]
[311132177,1704928239221,-155.20374711,0.00019999,2]
[311132178,1704928239231,-156.30461728,0.0002,2]
[311132180,1704928239240,-266.19065175,0.0002,2]
[311132182,1704928239249,-35303.17857849,0.0002,2]
[311132185,1704928239265,-1494.64080407,0.0002,2]
[311132187,1704928239276,-17591.55749538,0.0002,2]
[311132189,1704928239288,-216344.92433069,0.0002,2]
[311132191,1704928239299,-676.96253794,0.0002,2]
[311132193,1704928239309,-154.93802479,0.0002,2]
[311132196,1704928239319,-1195.09669838,0.0002,2]
[311132198,1704928239329,-569.19143491,0.0002,2]
[311132200,1704928239339,-853.57612089,0.0002,2]
[311132202,1704928239349,-236.79527182,0.0002,2]
[311132204,1704928239359,-665.20950523,0.0002,2]
[311132206,1704928239369,-154.93802479,0.0002,2]
[311132208,1704928239378,-154.93802479,0.0002,2]
[311132209,1704928239388,-6417.962187,0.0002,2]
[311132211,1704928239398,-6417.962187,0.0002,2]
[311132213,1704928239409,-6417.962187,0.0002,2]
[311132215,1704928239418,-6417.962187,0.0002,2]
[311132216,1704928239427,-6417.962187,0.0002,2]
[311132217,1704928239436,-368.786727,0.00020548,2]
[311132218,1704928239445,-172.58473352,0.00020878,2]
[311132219,1704928239454,-326.73090334,0.00021,2]
[311132220,1704928239464,-232.52223397,0.00021,2]
[311132221,1704928239473,-21891.54775598,0.00021,2]
[311132222,1704928239483,-20232.49393083,0.00021,2]
[311132223,1704928239492,-193.95210286,0.00021,2]
[311132224,1704928239503,-1545.49856196,0.00021,2]
[311132225,1704928239513,-166.666666,0.00021918,2]
[311132236,1704928239628,-164.53828582,0.00022,2]
[311132238,1704928239638,-292.83058016,0.00022,4]
[311132240,1704928239647,-156.86767994,0.00022,2]
[311132242,1704928239659,-3931.75997852,0.00022,2]
[311132244,1704928239668,-4917.8600325,0.00022,2]
[311132246,1704928239677,-166.666666,0.00022431,2]
[311132248,1704928239687,-154.93802479,0.000225,2]
[311132249,1704928239696,-166.666666,0.00022944,2]
[311132251,1704928239706,-2093.08732709,0.00023,2]
[311132254,1704928239715,-9920.80434626,0.00023,2]
[311132256,1704928239725,-166.666666,0.00023456,2]
[311132258,1704928239734,-166.666666,0.00023969,2]
[311132259,1704928239743,-10235.90810498,0.00023998,2]
[311132261,1704928239753,-154.93802479,0.00024,2]
[311132264,1704928239762,-614.01289661,0.00024,2]
[311132266,1704928239771,-2293.16748545,0.00024,2]
[311132267,1704928239781,-166.666666,0.00024482,2]
[311132269,1704928239790,-496.879336,0.0002498,5]
[311132271,1704928239801,-4711.08145103,0.00025,2]
[311132273,1704928239810,-155.60722897,0.00025,2]
[311132275,1704928239820,-677.45880314,0.00025,2]
[311132277,1704928239829,-3000.0,0.00025,2]
[311132279,1704928239838,-7193.15698043,0.00025297,2]
[311132281,1704928239848,-172.58473352,0.00025357,2]
[311132283,1704928239858,-200.0,0.00025479,2]
[311132286,1704928239867,-525.91402641,0.00026,2]
[311132287,1704928239876,-240.6863978,0.00026,2]
[311132289,1704928239885,-620.00011973,0.0002673,2]
[311132291,1704928239895,-733.25771754,0.00027,2]
[311132293,1704928239907,-163.49830992,0.00027,2]
[311132295,1704928239917,-9098.22062588,0.000273,4]
[311132297,1704928239926,-155.14218947,0.00027393,2]
[311132299,1704928239935,-383.37086754,0.00027393,2]
[311132301,1704928239944,-155.46781251,0.00027393,2]
[311132303,1704928239954,-469.62717363,0.00027393,2]
[311132305,1704928239963,-283.92372612,0.00027394,2]
[311132306,1704928239973,-280.80361611,0.00027394,2]
[311132307,1704928239983,-228.94822044,0.00027394,2]
[311132308,1704928239992,-491.93940325,0.00027394,2]
[311132309,1704928240002,-212.94703521,0.00027394,2]
[311132310,1704928240011,-559.99120684,0.00027394,2]
[311132311,1704928240021,-229.35916195,0.00027394,2]
[311132312,1704928240030,-1989.51321951,0.00027394,2]
[311132313,1704928240039,-1575.9466697,0.00027394,2]
[311132314,1704928240048,-174.60860092,0.00027394,2]
[311132315,1704928240057,-3328.33891796,0.00027394,2]
[311132316,1704928240066,-273.20100345,0.00027394,2]
[311132317,1704928240075,-15392.1969927,0.00027394,2]
[311132318,1704928240085,-155.77552522,0.00027394,2]
[311132319,1704928240094,-731.16986773,0.00027394,2]
[311132320,1704928240103,-156.86178888,0.00027394,2]
[311132321,1704928240112,-515.49587893,0.00027395,2]
[311132322,1704928240122,-203.52324247,0.00027395,2]
[311132323,1704928240131,-412.41447299,0.00027395,2]
[311132324,1704928240140,-763.40324942,0.00027396,2]
[311132326,1704928240149,-200.0,0.00027396,2]
[311132327,1704928240164,-2079.63666476,0.00027396,2]
[311132329,1704928240173,-1821.85168105,0.00027396,2]
[311132331,1704928240185,-546.7810851,0.00027396,2]
[311132333,1704928240194,-300.0,0.00027396,2]
[311132334,1704928240204,-3313.2630203,0.00027396,2]
[311132335,1704928240214,-154.93802479,0.00027396,7]
[311132336,1704928240223,-309.79865023,0.00027396,2]
[311132337,1704928240233,-176.30887294,0.00027396,2]
[311132339,1704928240243,-3520.26338552,0.00027396,2]
[311132341,1704928240253,-18840.87,0.00027397,3]
[311132342,1704928240262,-12549.98,0.00027397,3]
[311132344,1704928240272,-15255.76,0.00027397,3]
[311132346,1704928240281,-12713.13,0.00027397,3]
[311132348,1704928240292,-10594.28,0.00027397,3]
[311132349,1704928240304,-501.0,0.000274,2]
[311132351,1704928240314,-19215.46993832,0.000275,2]
[311132353,1704928240327,-150.92453773,0.00027666,4]
[311132355,1704928240339,-687.59711705,0.000277,2]
[311132357,1704928240348,-305.01426273,0.00028,2]
[311132359,1704928240357,-157.52979972,0.00028,2]
[311132361,1704928240368,-620.00000599,0.00028066,2]
[311132362,1704928240381,-150.92453773,0.0002823,2]
[311132364,1704928240391,-10019.63906969,0.00028907,4]
[311132366,1704928240402,-44058.23751846,0.00028927,4]
[311132368,1704928240413,-14676.11233069,0.00028937,4]
[311132369,1704928240424,-522.44018289,0.00029,2]
[311132370,1704928240434,-1982.97164167,0.00029,2]
[311132371,1704928240445,-620.0000003,0.0002947,2]
[311132372,1704928240455,-152.35064136,0.00029595,2]
[311132373,1704928240466,-173.38639317,0.0002963,2]
[311132374,1704928240476,-206789.8591776,0.0002979,7]
[311132375,1704928240487,-172.58473352,0.00029835,2]
[311132376,1704928240498,-173.38639317,0.00029908,2]
[311132377,1704928240514,-155.0,0.00029935,2]
[311132378,1704928240524,-6973.85683356,0.0003,4]